[Event "European Women Blitz-ch 2024"]
[Site "Monaco"]
[Date "2025.01.10"]
[Round "7.13"]
[White "Charkhalashvili, Inga"]
[Black "Maisuradze, Nino"]
[Result "1/2-1/2"]
[Annotator "TA"]
[ECO "A32"]
[WhiteElo "2240"]
[BlackElo "2174"]
[PlyCount "125"]
[EventDate "2025.01.06"]
[EventType "swiss"]
[EventCountry "MNC"]
[SourceTitle "playchess.com"]
[Source "ChessBase"]
[SourceQuality "1"]
[TimeControl "180+2"]

{[%evp 10,125,29,-8,24,19,15,0,37,0,3,-15,-15,-22,-20,-47,-20,-20,-21,-92,-52,-55,-59,-54,-46,-51,-39,-49,-39,-51,-44,-47,-4,-18,-8,-13,-13,-12,10,0,17,-4,0,-7,31,0,29,22,65,27,24,34,43,8,24,33,43,3,25,19,29,29,71,27,37,11,62,1,24,35,52,-227,52,-39,-46,-22,-31,-33,0,-34,-31,-104,-75,-76,-29,-21,-20,-59,-8,-59,0,-1709,65,69,66,55,75,38,37,24,88,73,145,101,121,72,101,107,108,108,200,0,108,0,176,0,114,0]} 1. d4 {[%emt 0:00:00]} Nf6 {[%emt 0:00:00]} 2. c4 {[%emt 0:00:02]} e6 {[%emt 0:00:01]} 3. Nf3 {[%emt 0:00:02]} c5 {[%emt 0:00:00]} 4. Nc3 {[%emt 0:00:02]} cxd4 {[%emt 0:00:17]} 5. Nxd4 {[%emt 0:00:02]} a6 {[%emt 0:00:01]} 6. a3 {[%emt 0:00:10]} Qc7 {[%emt 0:00:02]} 7. e3 {[%emt 0:00:02]} Nc6 {[%emt 0:00:02]} 8. Be2 {[%emt 0:00:18]} b6 {[%emt 0:00:06]} 9. Nxc6 {[%emt 0:00:07]} dxc6 {[%emt 0:00:02]} 10. O-O {[%emt 0:00:05]} Bd6 {[%emt 0:00:06]} 11. f4 {[%emt 0:00:09]} e5 {[%emt 0:00:13]} 12. Bf3 {[%emt 0:00:07]} exf4 {[%emt 0:00:07]} 13. exf4 {[%emt 0:00:01]} O-O {[%emt 0:00:05]} 14. h3 {[%emt 0:00:12]} (14. Ne4 $11 {remains equal.} Nxe4 (14... Bxf4 $2 15. Nxf6+ gxf6 16. Bxf4 $18) 15. Bxe4) 14... Be6 {[%emt 0:00:03]} (14... Bxf4 15. Bxf4 Qxf4 16. Bxc6 Qe3+ 17. Kh1 $16) 15. Ne4 $1 {[%emt 0:00:32]} Nxe4 {[%emt 0:00:10]} 16. Bxe4 {[%emt 0:00:02]} f5 {[%emt 0:00:17]} 17. Bd3 {[%emt 0:00:04][%cal Be4d3,Bd3e2,Be2f3,Bf3d5][%mdl 32]} Bc5+ {[%emt 0:00:05]} 18. Kh1 {[%emt 0:00:03]} Rad8 {[%emt 0:00:00]} 19. Qc2 {[%emt 0:00:05][%cal Oc1e3]} Qd6 {[%emt 0:00:04]} 20. Be2 {[%emt 0:00:19]} Kh8 {[%emt 0:00:04]} 21. Rd1 {[%emt 0:00:18]} (21. b4 $5 Bd4 $8 22. Bb2 $11) 21... Qe7 {[%emt 0:00:01]} 22. Bd2 {[%emt 0:00:02]} Qh4 {[%emt 0:00:07]} 23. Bf3 {[%emt 0:00:10][%cal Oa1c1]} Bd6 {[%emt 0:00:10]} (23... Rd4 {with more complications.} 24. Bc3 Rxd1+ 25. Rxd1 Qxf4 26. Bxc6 Bd6) 24. Qc1 {[%emt 0:00:09][%cal Oh1h2]} c5 {[%emt 0:00:12]} 25. Be3 {[%emt 0:00:04]} Bf7 {[%emt 0:00:10][%cal Be6f7,Bf7h5,Bh5g4,Bg4e2][%mdl 32]} 26. Bd5 {[%emt 0:00:14]} Bh5 {[%emt 0:00:12]} 27. Rf1 {[%emt 0:00:01]} Bg4 {[%emt 0:00:04]} 28. Kh2 {[%emt 0:00:02]} (28. Qe1 {simplifies} Qxe1 29. Rfxe1 Bh5 30. b4) 28... Rf6 {[%emt 0:00:13]} 29. Bf2 {[%emt 0:00:03]} Qh6 {[%emt 0:00:05]} 30. Bg3 {[%emt 0:00:01]} Be2 {[%emt 0:00:28]} 31. Rf2 {[%emt 0:00:02]} Bd3 {[%emt 0:00:10]} 32. Qc3 {[%emt 0:00:01]} Be4 {[%emt 0:00:03]} 33. Rd1 {[%emt 0:00:05]} Rdf8 {[%emt 0:00:01]} 34. Qe3 {[%emt 0:00:06]} Bxd5 {[%emt 0:00:04]} 35. Rxd5 {[%emt 0:00:01]} Qg6 {[%emt 0:00:04]} 36. Qd3 {[%emt 0:00:03]} Re6 {[%emt 0:00:04]} 37. Rd2 {[%emt 0:00:01]} Be7 {[%emt 0:00:06]} (37... Rff6 $11) 38. Rd7 {[%emt 0:00:04]} (38. Re2 $14) 38... Bf6 {[%emt 0:00:01]} 39. b4 {[%emt 0:00:03]} Bd4 {[%emt 0:00:02]} 40. bxc5 $2 {[%emt 0:00:03][%mdl 8192]} (40. Bf2 $14 {keeps the upper hand.}) 40... bxc5 $2 {[%emt 0:00:01]} (40... Re3 $1 $19 41. Qxe3 Bxe3) 41. Re2 {[%emt 0:00:02]} ({Better is} 41. Bf2 $14) 41... Re4 $15 {[%emt 0:00:04]} 42. Rxe4 {[%emt 0:00:09]} fxe4 {[%emt 0:00:01]} 43. Qe2 {[%emt 0:00:01]} Qe6 {[%emt 0:00:09]} 44. Rb7 {[%emt 0:00:01]} (44. Qg4 $5 Qxc4 45. Bf2 $11) 44... e3 $36 {[%emt 0:00:02][%mdl 2048] White is under pressure.} 45. Be1 {[%emt 0:00:08]} (45. a4 $1 $15) 45... h6 {[%emt 0:00:01][%cal Oe6e4] Strongly threatening ...Qe4!.} (45... Rxf4 $2 46. Rb8+ $18) 46. g3 {[%emt 0:00:01]} Rd8 {[%emt 0:00:02]} ({Black should try} 46... Kg8 $17 47. Rb3 Qc6) 47. Ba5 $1 $11 {[%emt 0:00:02]} Re8 {[%emt 0:00:01]} 48. Rb6 {[%emt 0:00:01] Wards off Qc6} Qe4 {[%emt 0:00:02]} (48... Qg8 $15) 49. Rxa6 {[%emt 0:00:03]} (49. Be1 $11) 49... Qb1 {[%emt 0:00:02]} (49... Rb8 $15 50. Rb6 Rxb6 51. Bxb6 Qa8) 50. Kg2 $2 {[%emt 0:00:01][%mdl 8192]} (50. Rb6 $11 Qe4 51. Rb5) 50... Qb2 $2 {[%emt 0:00:06]} (50... Qb7+ $19 51. Rc6 Qxc6+ 52. Qf3 Qa4) 51. Qxb2 $14 {[%emt 0:00:03]} Bxb2 {[%emt 0:00:01][%mdl 4096] Endgame KRB-KRB. White is a pawn up.} 52. Be1 {[%emt 0:00:01]} Rd8 {[%emt 0:00:05]} 53. Kf3 {[%emt 0:00:02]} Rd1 {[%emt 0:00:02]} 54. Ke2 {[%emt 0:00:00]} Ra1 {[%emt 0:00:01]} (54... Rc1 $1 $11) 55. a4 {[%emt 0:00:02][%cal Ba3a4,Ba4a5,Ba5a6][%mdl 32]} Ra3 {[%emt 0:00:02]} (55... Bd4 $142) 56. a5 $16 {[%emt 0:00:02]} Bd4 {[%emt 0:00:04]} 57. Ra8+ {[%emt 0:00:02]} Kh7 {[%emt 0:00:00]} 58. a6 {[%emt 0:00:00]} Ra2+ {[%emt 0:00:01]} 59. Kf3 {[%emt 0:00:01]} Ra1 {[%emt 0:00:01] [#]} (59... g6 $16 {is a better defense.}) 60. Ke2 {[%emt 0:00:02]} (60. a7 $1 $18) 60... Ra2+ $1 {[%emt 0:00:01]} 61. Kf3 {[%emt 0:00:04]} (61. Kd3 $16) 61... Ra1 $18 {[%emt 0:00:01] [#]} 62. Ke2 {[%emt 0:00:05]} (62. a7 $1 $18) 62... Ra2+ $1 $16 {[%emt 0:00:00]} 63. Kf3 {[%emt 0:00:03]} ({White must play} 63. Kd3 $16) 1/2-1/2

[Event "European Women Blitz-ch 2024"]
[Site "Monaco"]
[Date "2025.01.10"]
[Round "7.14"]
[White "Kanyamarala, Trisha"]
[Black "Piddubna, Bozhena"]
[Result "0-1"]
[Annotator "TA"]
[ECO "A40"]
[WhiteElo "2158"]
[BlackElo "2152"]
[PlyCount "102"]
[EventDate "2025.01.06"]
[EventType "swiss"]
[EventCountry "MNC"]
[SourceTitle "playchess.com"]
[Source "ChessBase"]
[SourceQuality "1"]
[TimeControl "180+2"]

{[%evp 14,102,0,0,41,31,68,47,58,54,116,112,111,36,139,135,156,37,43,39,33,26,21,35,26,0,0,-10,-9,-22,-12,-35,-27,-25,-9,-11,-9,0,0,-29,-24,-120,-117,-310,-26,-166,-41,-79,-31,-21,-33,-206,-205,-202,-202,-247,-258,-275,-291,-518,-231,-245,-239,-392,-377,-380,-380,-504,-497,-519,-517,-519,-519,-517,-504,-552,-489,-481,-383,-378,-375,-6103,-453,-427,-378,-466,-366,-29982,-29983,-29983,-29984]} 1. d4 {[%emt 0:00:02]} Nf6 {[%emt 0:00:13]} 2. Nf3 {[%emt 0:00:01]} g6 {[%emt 0:00:01]} 3. Nbd2 {[%emt 0:00:04]} Bg7 {[%emt 0:00:06]} 4. e4 {[%emt 0:00:03]} O-O {[%emt 0:00:03]} 5. Bd3 {[%emt 0:00:02]} d6 {[%emt 0:00:06]} 6. O-O {[%emt 0:00:05]} c5 {[%emt 0:00:23]} 7. d5 {[%emt 0:00:20]} e6 {[%emt 0:00:25]} 8. c4 {[%emt 0:00:15]} Nh5 {[%emt 0:00:07]} 9. Re1 {[%emt 0:00:17]} e5 {[%emt 0:00:08]} 10. g3 {[%emt 0:00:17]} Bg4 {[%emt 0:00:24]} 11. Bf1 {[%emt 0:00:05]} f5 {[%emt 0:00:05]} (11... Bh6 $14) 12. h3 $16 {[%emt 0:00:12]} Bxf3 {[%emt 0:00:29]} 13. Qxf3 {[%emt 0:00:14]} ({White should try} 13. Nxf3 $16 {Strongly threatening exf5.} f4 14. g4) 13... Nd7 {[%emt 0:00:17]} (13... Bh6 $14) 14. exf5 {[%emt 0:00:09]} Rxf5 {[%emt 0:00:01]} 15. Qg2 {[%emt 0:00:08]} (15. Qb3 $16) 15... Bh6 $1 $14 {[%emt 0:00:25]} 16. Bd3 {[%emt 0:00:17]} Rf8 {[%emt 0:00:06]} 17. Ne4 {[%emt 0:00:04][%csl LRd6,LRh6]} Bxc1 {[%emt 0:00:01]} 18. Raxc1 {[%emt 0:00:02]} Qe7 {[%emt 0:00:02]} 19. Be2 {[%emt 0:00:06]} Ng7 {[%emt 0:00:02]} 20. h4 {[%emt 0:00:07]} Nf6 {[%emt 0:00:02]} 21. Ng5 {[%emt 0:00:09]} h6 {[%emt 0:00:02]} 22. Ne4 {[%emt 0:00:05]} Nxe4 {[%emt 0:00:04]} 23. Qxe4 {[%emt 0:00:01]} Qf6 {[%emt 0:00:01]} 24. Rf1 {[%emt 0:00:08]} Nf5 {[%emt 0:00:03]} 25. Bd3 {[%emt 0:00:05]} Kg7 {[%emt 0:00:02]} 26. Qg4 {[%emt 0:00:05]} h5 {[%emt 0:00:03]} 27. Qh3 {[%emt 0:00:04]} (27. Qe4 $11 {keeps the balance.}) 27... Nd4 $17 {[%emt 0:00:01]} 28. Qg2 $2 {[%emt 0:00:20]} (28. Rcd1 $17 {was worth a try.}) 28... Rf7 $2 {[%emt 0:00:06]} ({Black should play} 28... e4 $1 $19 {[%cal Re4d3]} 29. Qxe4 Nf3+ (29... Rae8 $2 30. Qg2 $19) 30. Kg2 Rae8 (30... Qxb2 31. Qxg6+ Kh8 32. Qh7#)) 29. Qe4 {[%emt 0:00:01] [#]} (29. f4 $11) 29... Raf8 {[%emt 0:00:03]} (29... Nf3+ $1 $19 30. Kg2 Nd2) 30. f4 {[%emt 0:00:02] [#]} exf4 {[%emt 0:00:06]} (30... Qf5 $1 $17 {[%cal Rf5e4] and ...Qxe4 would now be decisive} 31. Qxd4 cxd4 (31... exd4 32. Bxf5 Rxf5 33. Rfe1 $11) 32. Bxf5 Rxf5 (32... gxf5 33. Rfd1 $17) 33. fxe5 Rxe5) 31. Rxf4 $15 {[%emt 0:00:01]} Nf5 $36 {[%emt 0:00:00][%mdl 2048] Black fights for an advantage.} 32. Qf3 $2 {[%emt 0:00:06]} (32. Rc2 $15) 32... Qxb2 $19 {[%emt 0:00:03]} (32... Nxh4 33. Qe3 Re7 (33... Qxb2 $2 34. Rxf7+ Rxf7 35. gxh4 $18) 34. Rxf6) 33. Rf1 {[%emt 0:00:05]} Qe5 {[%emt 0:00:03]} (33... Qxa2 34. Bxf5 Rxf5 35. Qc3+ Kg8 36. Ra1 $11) 34. Bxf5 {[%emt 0:00:03]} Rxf5 {[%emt 0:00:00]} 35. Rxf5 {[%emt 0:00:01]} Rxf5 {[%emt 0:00:01][%mdl 4096] Endgame KQR-KQR. Black is a pawn up.} ({Less strong is} 35... gxf5 36. Rf2 $17) 36. Qg2 $2 {[%emt 0:00:02]} (36. Qb3) 36... Qd4+ {[%emt 0:00:01]} (36... Rxf1+ $142 37. Qxf1 Qxg3+ 38. Kh1 Qxh4+ 39. Kg1 Qd4+ 40. Kg2 Qe4+ 41. Kh2 g5 42. Qa1+ Qe5+ 43. Qxe5+ dxe5) 37. Kh2 {[%emt 0:00:02]} Qxc4 {[%emt 0:00:02]} 38. Rxf5 $2 {[%emt 0:00:01]} (38. Qb2+ Qd4 39. Qxb7+ Kf6 40. Rxf5+ gxf5 41. Qc8 Qxd5 42. Qh8+ Kg6 43. Qe8+ Qf7 44. Qe2) 38... gxf5 {[%emt 0:00:01] KQ-KQ. Black is two pawns up.} 39. Qb2+ {[%emt 0:00:02]} Kg6 {[%emt 0:00:01]} 40. Qxb7 {[%emt 0:00:01]} Qe2+ {[%emt 0:00:01]} 41. Kh3 {[%emt 0:00:01]} Qf1+ {[%emt 0:00:02]} ({And not} 41... Qxa2 42. Qc6 Qe2 43. Qxd6+ Kf7 44. Qc7+ Kg6 45. Qd6+ Kf7 46. Qxc5 $11) 42. Kh2 {[%emt 0:00:01][%cal Ob7e7]} f4 {[%emt 0:00:02]} 43. gxf4 {[%emt 0:00:02]} Qxf4+ {[%emt 0:00:01]} 44. Kh3 {[%emt 0:00:01]} Qe3+ {[%emt 0:00:02]} 45. Kg2 {[%emt 0:00:01]} Qd2+ {[%emt 0:00:02]} 46. Kf3 {[%emt 0:00:01]} Qxa2 {[%emt 0:00:03]} 47. Qe7 $2 {[%emt 0:00:02]} (47. Qa8 Qb3+ 48. Ke2 Qc2+ 49. Ke3) 47... Qb3+ {[%emt 0:00:01]} (47... Qxd5+ $142 48. Kf2 Qf7+ 49. Qxf7+ Kxf7) 48. Ke2 {[%emt 0:00:01]} Qc4+ {[%emt 0:00:02]} 49. Kd2 {[%emt 0:00:02]} Qf4+ {[%emt 0:00:01]} 50. Kc3 $2 {[%emt 0:00:03]} (50. Kd3 $19) 50... Qf6+ {[%emt 0:00:01]} 51. Qxf6+ {[%emt 0:00:02]} Kxf6 {[%emt 0:00:00]} 0-1

[Event "European Women Blitz-ch 2024"]
[Site "Monaco"]
[Date "2025.01.10"]
[Round "7.15"]
[White "Shvedova, Alexandra"]
[Black "Benmesbah, Natacha"]
[Result "1-0"]
[Annotator "TA"]
[ECO "B12"]
[WhiteElo "2266"]
[BlackElo "2259"]
[PlyCount "49"]
[EventDate "2025.01.06"]
[EventType "swiss"]
[EventCountry "MNC"]
[SourceTitle "playchess.com"]
[Source "ChessBase"]
[SourceQuality "1"]
[TimeControl "180+2"]

{[%evp 9,49,20,16,12,21,33,37,18,372,369,375,83,78,74,94,78,88,100,127,144,175,171,370,362,612,614,925,925,982,972,1032,343,339,329,329,334,788,732,902,916,29991,29992]} 1. e4 {[%emt 0:00:01]} c6 {[%emt 0:00:00]} 2. d4 {[%emt 0:00:01]} d5 {[%emt 0:00:01]} 3. e5 {[%emt 0:00:01]} c5 {[%emt 0:00:03]} 4. dxc5 {[%emt 0:00:01]} e6 {[%emt 0:00:01]} 5. Nf3 {[%emt 0:00:02]} Bxc5 {[%emt 0:00:06]} 6. Bd3 {[%emt 0:00:13]} f6 {[%emt 0:00:31]} 7. O-O {[%emt 0:00:20]} Nc6 {[%emt 0:00:15]} 8. Qe2 {[%emt 0:00:01]} Nd4 $2 {[%emt 0:00:43][%mdl 8192] Repels c4} (8... fxe5 $11 9. Nxe5 Nxe5 10. Qxe5 Nf6) 9. Nxd4 $18 {[%emt 0:00:20]} Bxd4 {[%emt 0:00:01] [#]} 10. Qh5+ $2 {[%emt 0:00:26]} (10. Qg4 $1 $18 {[%cal Rg4g7]} Ne7 11. Qxd4) 10... Kf8 $16 {[%emt 0:00:07]} 11. exf6 {[%emt 0:00:18]} (11. Bxh7 $2 Bxe5 12. Re1 Qc7 13. Rxe5 fxe5 $19 (13... Qxe5 14. Qxe5 fxe5 15. Bd3 $15)) 11... Nxf6 {[%emt 0:00:03]} 12. Qh4 {[%emt 0:00:02]} Bb6 {[%emt 0:00:18]} 13. Bf4 {[%emt 0:00:07]} Bd7 {[%emt 0:00:25]} 14. Nd2 {[%emt 0:00:05][%cal Bb1d2,Bd2f3,Bf3g5][%mdl 32] Prevents Ne4. White is more active.} Kf7 {[%emt 0:00:12]} 15. Nf3 {[%emt 0:00:01]} Rf8 $2 {[%emt 0:00:11]} (15... Kg8 16. Ne5 Be8) 16. Ng5+ $18 {[%emt 0:00:03]} (16. Bxh7 Rh8 $18) 16... Ke8 $2 {[%emt 0:00:11]} (16... Ke7 17. Be5 (17. Nxh7 Rh8 $18) 17... Bc7) 17. Bd6 {[%emt 0:00:19][%cal Oa1e1] Hoping for Rae1!.} Ne4 {[%emt 0:00:08]} 18. Bxe4 {[%emt 0:00:12] White threatens Qh5+ and mate.} ({Less strong is} 18. Bxf8 Nxg5 19. Qb4 (19. Bxg7 $2 Nf3+ 20. gxf3 Qxh4 $19) 19... a5 $18) 18... dxe4 {[%emt 0:00:03]} 19. Bxf8 {[%emt 0:00:02]} Kxf8 {[%emt 0:00:01]} 20. Qxh7 $2 {[%emt 0:00:10]} (20. Qf4+ Kg8 21. Qf7+ (21. Nxe4 Qe7 $18) 21... Kh8 22. Qh5 (22. Nxe6 Bxe6 23. Qxe6 Qe8 $18) (22. Nxe4 Bb5 $18) 22... Qxg5 23. Qxg5) 20... Qxg5 {[%emt 0:00:03]} 21. Qh8+ {[%emt 0:00:01]} (21. Qxe4 $2 {perishes.} Bc6 22. h4 Qg3 $19 (22... Bxe4 $2 23. hxg5 Rc8 24. Rfe1 $19)) 21... Ke7 {[%emt 0:00:11]} 22. Qxa8 {[%emt 0:00:02]} e5 $2 {[%emt 0:00:01]} (22... Bc6) 23. Qxb7 {[%emt 0:00:04]} Ke8 {[%emt 0:00:04]} 24. Rad1 {[%emt 0:00:04]} e3 {[%emt 0:00:04]} 25. Qxd7+ {[%emt 0:00:07]} 1-0

[Event "European Women Blitz-ch 2024"]
[Site "Monaco"]
[Date "2025.01.10"]
[Round "7.16"]
[White "Prado Acebo, Ines"]
[Black "Toncheva, Nadya"]
[Result "0-1"]
[Annotator "TA"]
[ECO "D17"]
[WhiteElo "2176"]
[BlackElo "2313"]
[PlyCount "64"]
[EventDate "2025.01.06"]
[EventType "swiss"]
[EventCountry "MNC"]
[SourceTitle "playchess.com"]
[Source "ChessBase"]
[SourceQuality "1"]
[TimeControl "180+2"]

{[%evp 19,64,6,12,-3,-17,-33,0,-34,30,0,37,23,27,17,64,-33,-36,-34,38,15,23,0,-11,0,33,-45,14,-104,-108,-99,-77,-65,-64,-199,4,-4,89,83,133,130,145,58,60,-12,-16,-20,-22]} 1. d4 {[%emt 0:00:02]} d5 {[%emt 0:00:01]} 2. c4 {[%emt 0:00:02]} c6 {[%emt 0:00:01]} 3. Nc3 {[%emt 0:00:02]} Nf6 {[%emt 0:00:01]} 4. Nf3 {[%emt 0:00:02]} dxc4 {[%emt 0:00:02]} 5. a4 {[%emt 0:00:04]} Bf5 {[%emt 0:00:01]} 6. Ne5 {[%emt 0:00:06]} Nbd7 {[%emt 0:00:01]} 7. Nxc4 {[%emt 0:00:04]} Qc7 {[%emt 0:00:02]} 8. g3 {[%emt 0:00:07]} e5 {[%emt 0:00:02]} 9. dxe5 {[%emt 0:00:02]} Nxe5 {[%emt 0:00:01]} 10. Bf4 {[%emt 0:00:05]} Nfd7 {[%emt 0:00:01]} 11. Ne3 {[%emt 0:00:27]} Be6 {[%emt 0:00:05]} 12. a5 {[%emt 0:00:05]} a6 {[%emt 0:00:06]} 13. Bg2 {[%emt 0:00:05]} Be7 {[%emt 0:03:04]} (13... h6 $15) 14. h4 {[%emt 0:00:06]} Rd8 {[%emt 0:00:00]} 15. Qc2 {[%emt 0:00:04][%cal Oc3d5]} Nc5 {[%emt 0:00:00]} 16. O-O {[%emt 0:00:32]} O-O {[%emt 0:00:00]} (16... Bb3 $11 17. Qc1 (17. Qf5 f6 $11) 17... O-O) 17. Ne4 {[%emt 0:00:12]} ({Better is} 17. b4 $1 $14 Nb3 18. Rad1) 17... Nb3 $15 {[%emt 0:00:00]} 18. Qc3 $1 {[%emt 0:00:18] Inhibits Nd4.} f6 {[%emt 0:00:10]} (18... Nd4 $1 $15 19. Rfe1 f6) 19. Ra4 {[%emt 0:00:18][%cal Oe4g5]} (19. Bh3 $5 Bxh3 20. Qxb3+ Rf7 21. Rfd1 $11) 19... Rfe8 {[%emt 0:00:00]} 20. Nc4 {[%emt 0:00:18]} Nd4 {[%emt 0:00:00]} (20... Bxc4 $2 21. Bxe5 (21. Rxc4 Nxa5 22. Ra4 b6 $18) 21... Qxe5 22. Qxc4+ Kh8 23. Qxb3 $18) 21. Re1 {[%emt 0:00:09]} Kh8 {[%emt 0:00:00]} (21... Bxc4 22. Bxe5 (22. Rxc4 Nb5 $18) 22... Qxe5 23. Rxc4 $14) 22. h5 {[%emt 0:00:03]} (22. Ncd6 $14 Bxd6 23. Rxd4 (23. Qxd4 Bf8 $11)) 22... h6 {[%emt 0:00:00]} (22... Bxc4 23. Bxe5 (23. Rxc4 Nb5 $11) 23... Qxe5 24. Rxc4 $14) (22... Nb5 $15 23. Qc1 Bxc4 24. Rxc4 (24. Qxc4 Qxa5 25. Rxa5 Nxc4 $17) 24... Qxa5 25. Bxe5 fxe5) 23. Raa1 {[%emt 0:00:23]} (23. Bxe5 $1 $11 {remains equal.} fxe5 24. e3) 23... Bxc4 {[%emt 0:00:00]} 24. Qxc4 {[%emt 0:00:03]} Nxc4 {[%emt 0:00:00]} 25. Bxc7 {[%emt 0:00:03] A strong pair of Bishops.} Rd7 {[%emt 0:00:00] Black is more active.} 26. Bf4 {[%emt 0:00:04] [#]} (26. Bb6 $15) 26... Nc2 $2 {[%emt 0:00:00]} (26... Nxb2 27. Bh3 f5 28. Reb1 Nxe2+ 29. Kh2 Nxf4 30. gxf4 $15) ({Black should play} 26... Bb4 $1 $19 {[%cal Od7e7] Threatens to win with ...Rde7!.} 27. e3 Bxe1 28. exd4 f5 (28... Bxa5 29. b3 $17)) 27. Rad1 {[%emt 0:00:02]} Rxd1 {[%emt 0:00:00]} (27... Rd4 $11) 28. Rxd1 $16 {[%emt 0:00:01] aiming for Rc1.} Nb4 {[%emt 0:00:00]} (28... Nxa5 $142 29. Rd7 Bf8) 29. Rd7 {[%emt 0:00:03]} Nxa5 {[%emt 0:00:00] [#]} 30. Bh3 {[%emt 0:00:06]} (30. Bd6 $1 $16 {[%cal Rd6e7]} Bf8 (30... Bxd6 31. Nxd6 Rb8 32. Be4 $11) 31. Rf7 Bxd6 32. Nxd6) 30... Nd5 $14 {[%emt 0:00:01]} 31. Bc1 {[%emt 0:00:02]} (31. Bd2 $14 Nc4 32. Rxb7) 31... Rd8 $11 {[%emt 0:00:06]} 32. Rxd8+ {[%emt 0:00:06]} Bxd8 {[%emt 0:00:21]} 0-1

[Event "European Women Blitz-ch 2024"]
[Site "Monaco"]
[Date "2025.01.10"]
[Round "7.17"]
[White "Sliwicka, Alicja"]
[Black "Jimenez Fernandez, Rebeca"]
[Result "1-0"]
[Annotator "TA"]
[ECO "B36"]
[WhiteElo "2344"]
[BlackElo "2114"]
[PlyCount "93"]
[EventDate "2025.01.06"]
[EventType "swiss"]
[EventCountry "MNC"]
[SourceTitle "playchess.com"]
[Source "ChessBase"]
[SourceQuality "1"]
[TimeControl "180+2"]

{[%evp 30,93,56,56,58,44,84,76,77,63,129,122,122,122,122,122,122,122,129,133,139,129,196,109,134,133,205,195,202,197,184,195,216,201,255,184,217,135,170,158,200,245,237,235,235,218,895,550,990,974,963,935,888,837,29973,29974,29974,29976,29976,29976,29977,29977,29979,29979,29980,29981]} 1. e4 {[%emt 0:00:01]} c5 {[%emt 0:00:00]} 2. Nf3 {[%emt 0:00:01]} Nc6 {[%emt 0:00:01]} 3. d4 {[%emt 0:00:01]} cxd4 {[%emt 0:00:00]} 4. Nxd4 {[%emt 0:00:01]} g6 {[%emt 0:00:01]} 5. c4 {[%emt 0:00:03]} Nf6 {[%emt 0:00:01]} 6. Nc3 {[%emt 0:00:02]} d6 {[%emt 0:00:00]} 7. f3 {[%emt 0:00:04]} Nxd4 {[%emt 0:00:02]} 8. Qxd4 {[%emt 0:00:02]} Bg7 {[%emt 0:00:00]} 9. Be3 {[%emt 0:00:02]} O-O {[%emt 0:00:02]} 10. Qd2 {[%emt 0:00:02]} Be6 {[%emt 0:00:01]} 11. b3 {[%emt 0:00:21]} Qa5 {[%emt 0:00:01]} 12. Rc1 {[%emt 0:00:06]} Rfc8 {[%emt 0:00:03]} 13. Be2 {[%emt 0:00:16]} a6 {[%emt 0:00:00]} 14. Na4 {[%emt 0:00:10]} Qxd2+ {[%emt 0:00:18]} 15. Kxd2 {[%emt 0:00:03]} Nd7 {[%emt 0:00:23]} 16. g4 {[%emt 0:00:02]} Rab8 {[%emt 0:00:03]} 17. Nc3 {[%emt 0:00:39]} b5 {[%emt 0:00:24]} 18. cxb5 {[%emt 0:00:04]} Bxc3+ {[%emt 0:00:02]} 19. Rxc3 {[%emt 0:00:02]} Rxc3 {[%emt 0:00:01]} (19... axb5 $14 20. Rhc1 (20. Rxc8+ Rxc8 21. Rc1 Ra8 $16) 20... Rxc3 21. Kxc3 (21. Rxc3 b4 $16) 21... b4+ 22. Kb2 f5) 20. Kxc3 $16 {[%emt 0:00:02]} axb5 {[%emt 0:00:01]} 21. Kb4 {[%emt 0:00:11]} Ne5 {[%emt 0:00:07]} 22. Rc1 $1 {[%emt 0:00:05][%cal Oe3d4]} (22. Bxb5 $2 Nc6+ (22... Nxf3 23. a4 $14) 23. Kc3 Rxb5 $19) 22... Bd7 {[%emt 0:00:09]} 23. Rc7 {[%emt 0:00:17]} Nc6+ {[%emt 0:00:10]} 24. Kc3 {[%emt 0:00:03] White is much more active.} b4+ {[%emt 0:00:01]} 25. Kb2 {[%emt 0:00:06]} Ne5 {[%emt 0:00:01]} (25... Rd8 $16 {was called for.} 26. Rb7 Be6) 26. Bd4 {[%emt 0:00:10]} (26. h3 $18 {and f4 would now be decisive} Be8 27. Rxe7) 26... Nc6 {[%emt 0:00:18]} 27. Bf2 {[%emt 0:00:21]} ({Don't play} 27. Rxd7 $6 Nxd4 28. Bc4 Kf8 $11) 27... Ne5 {[%emt 0:00:06]} (27... Be8 $16 28. Bh4 Nd4) 28. Bg3 $18 {[%emt 0:00:01]} Bb5 {[%emt 0:00:05]} 29. Bxb5 {[%emt 0:00:14]} Rxb5 {[%emt 0:00:02]} 30. Bxe5 $1 {[%emt 0:00:01]} dxe5 {[%emt 0:00:25]} 31. Rxe7 {[%emt 0:00:02][%mdl 4096] Endgame KR-KR. White is a pawn up.} Kg7 {[%emt 0:00:32]} 32. Rd7 {[%emt 0:00:04]} Rb6 {[%emt 0:00:13]} 33. h4 {[%emt 0:00:05]} Rf6 {[%emt 0:00:03]} 34. Rd3 {[%emt 0:00:03]} h5 {[%emt 0:00:01]} 35. gxh5 $1 {[%emt 0:00:06]} gxh5 {[%emt 0:00:01] [#]} 36. a3 $1 {[%emt 0:00:06]} bxa3+ {[%emt 0:00:02]} 37. Kxa3 {[%emt 0:00:01]} Rf4 $2 {[%emt 0:00:06] [#]} (37... Ra6+ 38. Kb4 Ra8) 38. b4 $1 {[%emt 0:00:02][%cal Bb3b4,Bb4b5,Bb5b6,Bb6b7][%mdl 32]} Rxh4 {[%emt 0:00:01]} 39. b5 {[%emt 0:00:01]} Rh1 {[%emt 0:00:01]} 40. b6 {[%emt 0:00:06]} Ra1+ {[%emt 0:00:17]} 41. Kb4 {[%emt 0:00:02] White threatens b7 and mate.} Ra6 {[%emt 0:00:12]} 42. Kb5 {[%emt 0:00:01]} Ra8 {[%emt 0:00:04]} 43. b7 {[%emt 0:00:04]} Rb8 {[%emt 0:00:01]} 44. Kc6 {[%emt 0:00:01]} h4 {[%emt 0:00:03][%cal Bh5h4,Bh4h3][%mdl 32]} 45. Rd1 {[%emt 0:00:03]} h3 {[%emt 0:00:03]} 46. Rh1 {[%emt 0:00:02]} Rh8 {[%emt 0:00:01]} 47. Kc7 {[%emt 0:00:01]} 1-0